fUST/lending_fUST_20240521
["ID","MTS","AMOUNT","RATE_DAILY","PERIOD"]
[327557838,1716226246970,-153.0,0.00042625,2]
[327557839,1716226246979,-291.3463721,0.00042625,2]
[327557840,1716226246988,-153.0,0.00042625,2]
[327557841,1716226246997,-153.0,0.00042625,2]
[327557842,1716226247007,-291.3463721,0.00042625,2]
[327557843,1716226247015,-153.0,0.00042625,2]
[327557844,1716226247024,-153.0,0.00042625,2]
[327557845,1716226247132,-291.3463721,0.00042625,2]
[327557846,1716226247142,-153.0,0.00042625,2]
[327557847,1716226247152,-153.0,0.00042625,2]
[327557848,1716226247161,-153.0,0.00042625,2]
[327557849,1716226247171,-291.3463721,0.00042625,2]
[327557850,1716226247182,-153.0,0.00042625,2]
[327557851,1716226247191,-291.3463721,0.00042625,2]
[327557852,1716226247201,-153.0,0.00042625,2]
[327557853,1716226247210,-153.0,0.00042625,2]
[327557854,1716226247219,-153.0,0.00042625,2]
[327557855,1716226247229,-291.3463721,0.00042625,2]
[327557856,1716226247238,-153.0,0.00042625,2]
[327557857,1716226247247,-291.3463721,0.00042625,2]
[327557858,1716226247257,-153.0,0.00042625,2]
[327557859,1716226247266,-153.0,0.00042625,2]
[327557860,1716226247276,-153.0,0.00042625,2]
[327557861,1716226247286,-291.3463721,0.00042625,2]
[327557862,1716226247295,-153.0,0.00042625,2]
[327557863,1716226247304,-291.3463721,0.00042625,2]
[327557864,1716226247313,-153.0,0.00042625,2]
[327557865,1716226247323,-153.0,0.00042625,2]
[327557866,1716226247332,-291.3463721,0.00042625,2]
[327557867,1716226247342,-153.0,0.00042625,2]
[327557868,1716226247354,-153.0,0.00042625,2]
[327557869,1716226247363,-291.3463721,0.00042625,2]
[327557870,1716226247373,-204.4439737,0.00042625,2]
[327557871,1716226247383,-153.0,0.00042625,2]
[327557872,1716226247394,-291.3463721,0.00042625,2]
[327557873,1716226247403,-153.0,0.00042625,2]
[327557874,1716226247413,-291.3463721,0.00042625,2]
[327557875,1716226247423,-153.0,0.00042625,2]
[327557876,1716226247437,-291.3463721,0.00042625,2]
[327557877,1716226247446,-204.4439737,0.00042625,2]
[327557878,1716226247456,-153.0,0.00042625,2]
[327557879,1716226247465,-153.0,0.00042625,2]
[327557880,1716226247475,-81.6074101,0.00042625,2]
[327557882,1716226316036,154.81422293,9.999e-05,2]
[327557883,1716226326878,1450.80884896,0.0001,2]
[327557885,1716226403198,429.86,0.00010959,2]
[327557886,1716226531194,24900.0,0.00015493,2]
[327557887,1716226620429,3011.72614128,0.000125,2]
[327557900,1716226693097,487.76962202,9.999e-05,2]
[327557901,1716226732851,789.89,0.00010959,2]
[327557905,1716226799661,154.81422293,9.999e-05,2]
[327557906,1716226804154,154.81422293,9.999e-05,2]
[327557912,1716226867680,920.93404353,0.00015641,2]
[327557920,1716227079174,1496.69412767,9.999e-05,2]
[327557921,1716227088639,20688.41085237,0.00015264,2]
[327557931,1716227142145,-7694.63957935,0.00015262,2]
[327557975,1716227432856,-316.23475701,0.00014153,2]
[327557976,1716227432868,-1581.74785164,0.00014153,2]
[327557977,1716227432879,-2679.28011289,0.00014153,2]
[327557978,1716227432888,-12048.13857542,0.00014153,2]
[327557979,1716227432897,-2597.95193588,0.00014154,2]
[327557980,1716227432907,-1120.8177706,0.00014155,2]
[327557981,1716227432919,-9561.24585473,0.00015147,2]
[327557982,1716227432928,-10510.59464911,0.00015148,2]
[327557983,1716227432938,-270.26710164,0.0001516,2]
[327557984,1716227432948,-4211.58914763,0.00015264,2]
[327557985,1716227432959,-270.26710163,0.0001614,2]
[327557986,1716227432970,-407.45193683,0.00016259,2]
[327557987,1716227432980,-11056.52493755,0.00016265,2]
[327557988,1716227432991,-157.82356406,0.00016469,2]
[327557989,1716227433000,-325.45381503,0.00016478,2]
[327557990,1716227433009,-12448.97287987,0.00016489,2]
[327557991,1716227433049,-273.25593556,0.00016489,2]
[327558009,1716227438440,-26212.95298073,0.00014152,2]
[327558010,1716227438449,-22635.74101084,0.00016489,2]
[327558034,1716227441726,-14393.9894802,0.00016489,2]
[327558049,1716227443501,-5098.22533193,0.00016489,2]
[327558061,1716227509294,273.37336231,9.9e-05,2]
[327558062,1716227517051,870.34538747,0.00012364,2]
[327558063,1716227517726,273.37336231,9.9e-05,2]
[327558064,1716227520021,528.55641204,9.999e-05,2]
[327558065,1716227525893,273.37336231,9.9e-05,2]
[327558066,1716227532022,194.48940853,9.999e-05,2]
[327558067,1716227533762,223.24637958,9.9e-05,2]
[327558068,1716227535990,154.81422293,9.999e-05,2]
[327558069,1716227557394,513.61746397,9.999e-05,2]
[327558070,1716227559445,154.81422293,9.999e-05,2]
[327558071,1716227565531,658.27806077,9.999e-05,2]
[327558072,1716227579244,818.93986839,9.999e-05,2]
[327558073,1716227581758,1581.73856904,9.999e-05,2]
[327558096,1716227826532,528.55641204,9.999e-05,2]
[327558100,1716227860498,154.81422293,9.999e-05,2]
[327558101,1716227868071,12048.13857542,0.000131,2]
[327558102,1716227869261,5749.53070703,0.000131,2]
[327558104,1716228039042,250.0,0.00012096,2]
[327558108,1716228355177,-2597.95193588,0.00012974,2]
[327558109,1716228355197,-9561.24585473,0.00012975,2]
[327558110,1716228355219,-13570.812797,0.00012975,2]
[327558111,1716228372199,4419.9482161,0.00011982,2]
[327558112,1716228400622,20330.0517839,0.00011982,2]
[327558113,1716228500753,1095.21612986,9.999e-05,2]
[327558114,1716228509915,690.328442,9.999e-05,2]
[327558115,1716228510530,154.81422293,9.999e-05,2]
[327558116,1716228512054,154.81422293,9.999e-05,2]
[327558117,1716228512683,331.02680639,9.999e-05,2]
[327558118,1716228516100,154.81422293,9.999e-05,2]
[327558119,1716228520928,1227.37361094,9.999e-05,2]
[327558120,1716228527274,395.37013077,9.999e-05,2]
[327558121,1716228528479,285.09281937,9.999e-05,2]
[327558122,1716228529366,528.55641204,9.999e-05,2]
[327558123,1716228530047,154.81422293,9.999e-05,2]
[327558124,1716228532846,492.91490697,9.999e-05,2]
[327558125,1716228533913,684.75161522,9.999e-05,2]
[327558126,1716228534463,2634.87580338,9.999e-05,2]
[327558127,1716228536348,410.54570505,9.999e-05,2]
[327558128,1716228536717,207.44455215,9.999e-05,2]
[327558129,1716228540063,720.10722881,9.999e-05,2]
[327558130,1716228540610,1403.54337151,9.999e-05,2]
[327558131,1716228542383,154.81422293,9.999e-05,2]
[327558132,1716228543431,702.72526149,9.998e-05,2]
[327558133,1716228545715,154.81422293,9.998e-05,2]
[327558134,1716228549275,-494.12337965,0.00011972,2]
[327558135,1716228549296,-2679.28011289,0.00011973,2]
[327558136,1716228549431,-286.01665724,0.00011974,2]
[327558137,1716228549452,-155.09515177,0.00011974,2]
[327558138,1716228549474,-9400.5542733,0.00011974,2]
[327558139,1716228549495,-10510.59464911,0.00011974,2]
[327558140,1716228549516,-486.8868237,0.00011974,2]
[327558141,1716228549537,-178.82160112,0.00011974,2]
[327558142,1716228549558,-158.96783613,0.00011974,2]
[327558143,1716228549579,-154.84514557,0.00011975,2]
[327558144,1716228549599,-266.39718368,0.00011975,2]
[327558145,1716228549620,-201.35678428,0.00011975,2]
[327558146,1716228549640,-1091.24833124,0.00011975,2]
[327558147,1716228549664,-337.80631511,0.00011975,2]
[327558148,1716228549685,-154.81422293,0.00011975,2]
[327558149,1716228549705,-330.47508381,0.00011975,2]
[327558150,1716228549727,-155.50319304,0.00011976,2]
[327558151,1716228549746,-154.81422293,0.00011976,2]
[327558152,1716228549767,-14341.4195125,0.00011976,2]
[327558153,1716228554373,905.95886179,9.999e-05,2]
[327558154,1716228556433,1043.44234529,9.999e-05,2]
[327558156,1716228561068,154.81422293,9.999e-05,2]
[327558157,1716228563907,154.81422293,9.999e-05,2]
[327558158,1716228568420,-8637.69242915,0.0001197,2]
[327558159,1716228568442,-9561.24585473,0.00011971,2]
[327558160,1716228568463,-154.81422293,0.00011971,2]
[327558161,1716228568484,-218.1831078,0.00011971,2]
[327558162,1716228568505,-7870.05794174,0.00011971,2]
[327558163,1716228568526,-295.24766096,0.00011971,2]
[327558164,1716228568548,-292.66816151,0.00011971,2]
[327558165,1716228568570,-2679.28011289,0.00011971,2]
[327558166,1716228568592,-1071.82306997,0.00011972,2]
[327558167,1716228568614,-531.08730599,0.00011972,2]
[327558168,1716228568637,-409.91298911,0.00011972,2]
[327558169,1716228568657,-1408.0992932,0.00011972,2]
[327558170,1716228568681,-197.02118229,0.00011972,2]
[327558171,1716228568703,-391.08209287,0.00011972,2]
[327558172,1716228568727,-59411.99421901,0.00011973,2]
[327558173,1716228568749,-735.04063789,0.00011974,2]
[327558174,1716228568933,-11871.53346823,0.00011976,2]
[327558175,1716228568955,-2114.91734672,0.00011976,2]
[327558176,1716228568978,-324.34366623,0.00011977,2]
[327558177,1716228569000,-452.82736237,0.00011977,2]
[327558178,1716228569022,-155.00790106,0.00011977,2]
[327558179,1716228569043,-188.26527624,0.00011977,2]
[327558180,1716228569066,-924.08881973,0.00011977,2]
[327558181,1716228569088,-1396.2103413,0.00011977,2]
[327558182,1716228569109,-238.65714557,0.00011977,2]
[327558183,1716228569131,-1410.4445149,0.00011977,2]
[327558184,1716228569156,-154.84514557,0.00011977,2]
[327558185,1716228569184,-213.09211131,0.00011977,2]
[327558186,1716228569205,-264.34555412,0.00011977,2]
[327558187,1716228569237,-11056.52493755,0.00011977,2]
[327558188,1716228569276,-238.25130232,0.00011977,2]
[327558189,1716228569303,-335.33795899,0.00011977,2]
[327558190,1716228569325,-10536.17088532,0.00011977,2]
[327558191,1716228569346,-154.84514557,0.00011977,2]
[327558192,1716228569367,-1718.73665311,0.00011977,2]
[327558193,1716228569390,-186.58997593,0.00011977,2]
[327558194,1716228569411,-156.3933525,0.00011977,2]
[327558195,1716228569435,-1350.72680674,0.00011977,2]
[327558196,1716228569456,-155.70807239,0.00011982,2]
[327558197,1716228569479,-4569.9482161,0.00011982,2]
[327558198,1716228569501,-162.16026101,0.00012871,2]
[327558199,1716228569524,-2597.41542727,0.00012972,2]
[327558200,1716228569546,-1011.88123116,0.00012974,2]
[327558201,1716228569567,-7349.00770615,0.00013099,2]
[327558202,1716228569590,-154.94813461,0.000131,2]
[327558203,1716228569611,-328.32221374,0.00013105,2]
[327558204,1716228569632,-339.919579,0.00013699,2]
[327558205,1716228569654,-7170.21054258,0.00013699,2]
[327558217,1716228633378,-8497.35895133,0.00011969,2]
[327558218,1716228633388,-155.49089692,0.0001197,2]
[327558219,1716228633397,-2251.35317267,0.00013597,2]
[327558220,1716228633406,-248.82682956,0.00013696,2]
[327558221,1716228633415,-2114.91734672,0.00013697,2]
[327558222,1716228633424,-156.77280387,0.00013697,2]
[327558223,1716228633433,-154.83128817,0.00013697,2]
[327558224,1716228633442,-52377.74734082,0.00013697,2]
[327558578,1716228641136,-4528.71929267,0.00013697,2]
[327558579,1716228641148,-2505.52758552,0.00013697,2]
[327558580,1716228641162,-1341.7432643,0.00013697,2]
[327558581,1716228641172,-998.99633812,0.00013698,2]
[327558582,1716228641181,-23228.15529687,0.00013698,2]
[327558827,1716228644323,-1083.17751173,0.00013696,2]
[327558829,1716228644334,-933.17513791,0.00013698,2]
[327558831,1716228644344,-9042.19805742,0.00013699,2]
[327558834,1716228644354,-283.65215008,0.000137,2]
[327558836,1716228644364,-921.16266462,0.00014,2]
[327558838,1716228644374,-162.16026097,0.00014423,2]
[327558840,1716228644384,-1684.33877323,0.00015,2]
[327558842,1716228644393,-942.77170322,0.00015,2]
[327558844,1716228644403,-285.71224732,0.00015,2]
[327558846,1716228644413,-700.64506324,0.00015,2]
[327558848,1716228644422,-2107.02696393,0.00015,2]
[327558850,1716228644432,-154.81422293,0.00015,2]
[327558852,1716228644442,-162.16026097,0.00015975,2]
[327558854,1716228644451,-201.78544673,0.00016268,2]
[327559059,1716228647200,-719.79,0.00016268,2]
[327559061,1716228647213,-3300.52476133,0.00016268,2]
[327559064,1716228647226,-417.22450303,0.00016419,2]
[327559066,1716228647241,-194.42088593,0.00016482,2]
[327559068,1716228647251,-657.90407705,0.00016482,2]
[327559070,1716228647261,-513.35151323,0.00016483,2]
[327559072,1716228647270,-835.50091713,0.00016485,2]
[327559074,1716228647279,-267.82213226,0.00016485,2]
[327559076,1716228647289,-190.32568759,0.00016485,2]
[327559078,1716228647298,-819.94230193,0.00016485,2]
[327559080,1716228647309,-1417.77570513,0.00016487,2]
[327559082,1716228647318,-184.32838394,0.00016489,2]
[327559084,1716228647327,-274.31398473,0.000165,2]
[327559086,1716228647336,-154.81422293,0.000165,2]
[327559088,1716228647346,-246.37591745,0.000165,2]
[327559090,1716228647358,-838.42549108,0.000165,2]
[327559092,1716228647367,-162.16026097,0.00017526,2]
[327559094,1716228647376,-1326.68511836,0.00017898,2]
[327559096,1716228647385,-896.1007993,0.00018,2]
[327559098,1716228647395,-534.92858456,0.00018,7]
[327559099,1716228647404,-1449.8995606,0.00018533,2]
[327559100,1716228647416,-173.73278582,0.00018537,2]
[327559101,1716228647425,-694.0256641,0.00018537,2]
[327559102,1716228647435,-500.0,0.00018537,2]
[327559103,1716228647444,-162.16026097,0.00019078,2]
[327559104,1716228647454,-163.93468263,0.00019176,2]
[327559105,1716228647463,-200.53451416,0.00019176,2]
[327559106,1716228647472,-250.80406463,0.00019176,2]
[327559107,1716228647483,-154.95886621,0.00019176,2]
[327559108,1716228647493,-154.95352743,0.00019177,2]
[327559109,1716228647502,-188.09848396,0.00019177,2]
[327559110,1716228647512,-250.66770773,0.00019177,2]
[327559111,1716228647522,-186.81745322,0.00019178,2]
[327559170,1716228857160,154.81422293,9.999e-05,2]
[327559171,1716228861672,154.81422293,9.999e-05,2]
[327559175,1716228904358,154.81422293,9.999e-05,2]
[327559181,1716229392716,154.81422293,9.999e-05,2]
[327559182,1716229542112,-930.28823602,0.00014,2]
[327559183,1716229542132,-1684.33877323,0.00015714,2]
[327559184,1716229542152,-342.703936,0.00015715,2]
[327559185,1716229542171,-154.81422293,0.00015812,2]
[327559186,1716229542192,-24900.0,0.00015814,2]
[327559187,1716229542211,-203.0714175,0.00016021,2]
[327559188,1716229542230,-274.31398473,0.000165,2]
[327559189,1716229542251,-210.09304076,0.00017287,2]
[327559190,1716229542270,-5404.52634007,0.00017288,2]
[327559191,1716229645139,-36134.4941399,0.00016965,2]
[327559192,1716229645160,-237.53590857,0.00017286,2]
[327559193,1716229645187,-154.81422293,0.00017286,2]
[327559194,1716229645211,-1692.44907396,0.00017287,2]
[327559195,1716229645235,-829.01127196,0.00017895,2]
[327559196,1716229645258,-829.01127195,0.00018191,2]
[327559197,1716229645282,-829.01127195,0.00018487,2]
[327559198,1716229645304,-829.01127195,0.00018782,2]
[327559199,1716229645326,-416.73919132,0.00018915,2]
[327559200,1716229645353,-373.71712199,0.00019,2]
[327559201,1716229645374,-6000.0,0.00019,2]
[327559202,1716229645395,-829.01127195,0.00019078,2]
[327559203,1716229645416,-154.90650467,0.00019171,2]
[327559204,1716229645436,-154.86786605,0.00019171,2]
[327559205,1716229645457,-155.23068534,0.00019171,2]
[327559206,1716229645476,-184.59886433,0.00019171,2]
[327559207,1716229645496,-2055.67174902,0.00019171,2]
[327559208,1716229645520,-305.68788735,0.00019171,2]
[327559209,1716229645546,-155.31415279,0.00019171,2]
[327559210,1716229645568,-345.13866246,0.00019171,2]
[327559211,1716229645590,-309.45841455,0.00019171,2]
[327559212,1716229645616,-660.23167755,0.00019171,2]
[327559213,1716229645637,-154.92421724,0.00019171,2]
[327559214,1716229645658,-205.04557167,0.00019171,2]
[327559215,1716229645678,-235.39080989,0.00019171,2]
[327559216,1716229645699,-154.8805143,0.00019172,2]
[327559217,1716229645721,-9511.40192025,0.00019173,2]
[327559218,1716229645741,-173.8658638,0.00019173,2]
[327559219,1716229645762,-309.5048201,0.00019173,2]
[327559220,1716229645782,-309.5048201,0.00019173,2]
[327559221,1716229645803,-192.50536467,0.00019173,2]
[327559222,1716229645824,-309.61298454,0.00019173,2]
[327559223,1716229645848,-1615.47085423,0.00019173,2]
[327559224,1716229645869,-422.14456878,0.00019174,2]
[327559225,1716229645890,-225.24201321,0.00019174,2]
[327559226,1716229645912,-1008.40234761,0.00019174,2]
[327559227,1716229645932,-184.63737487,0.00019174,2]
[327559228,1716229645952,-287.98574058,0.00019174,2]
[327559229,1716229645973,-6882.066276,0.00019174,2]
[327559230,1716229645994,-702.56585547,0.00019175,2]
[327559231,1716229646015,-395.32769299,0.00019175,2]
[327559232,1716229646155,-818.31964662,0.00019175,2]
[327559233,1716229646177,-10451.02330036,0.00019175,2]
[327559234,1716229646198,-1043.25678867,0.00019176,2]
[327559235,1716229646218,-209.93544097,0.00019176,2]
[327559236,1716229646238,-242.73487552,0.00019176,2]
[327559237,1716229646258,-522.61290648,0.00019176,2]
[327559238,1716229646278,-580.82197,0.00019176,2]
[327559239,1716229646298,-895.88641908,0.00019176,2]
[327559240,1716229646320,-835.50091713,0.00019176,2]
[327559241,1716229646340,-162.19869283,0.00019177,2]
[327559242,1716229646361,-11007.71922659,0.00019177,2]
[327559243,1716229646380,-1818.22253863,0.00019177,2]
[327559244,1716229646402,-44427.53780698,0.00019178,3]
[327559245,1716229646423,-313.18254678,0.00019178,2]
[327559246,1716229646443,-500.0,0.00019178,2]
[327559247,1716229646464,-500.0,0.00019178,2]
[327559248,1716229646486,-500.0,0.00019178,2]
[327559249,1716229646516,-500.0,0.00019178,2]
[327559250,1716229646537,-500.0,0.00019178,2]
[327559251,1716229646560,-500.0,0.00019178,2]
[327559252,1716229646581,-500.0,0.00019178,2]
[327559253,1716229646607,-500.0,0.00019178,2]
[327559254,1716229646628,-500.0,0.00019178,2]
[327559255,1716229646648,-500.0,0.00019178,2]
[327559256,1716229646667,-500.0,0.00019178,2]
[327559257,1716229646689,-600.0,0.00019178,2]
[327559258,1716229646710,-500.0,0.00019178,2]
[327559259,1716229646730,-500.0,0.00019178,2]
[327559260,1716229646749,-500.0,0.00019178,2]
[327559261,1716229646771,-500.0,0.00019178,2]
[327559262,1716229646791,-500.0,0.00019178,2]
[327559263,1716229646811,-500.0,0.00019178,2]
[327559264,1716229646832,-500.0,0.00019178,2]
[327559265,1716229646855,-500.0,0.00019178,2]
[327559266,1716229646876,-500.0,0.00019178,2]
[327559267,1716229646896,-500.0,0.00019178,2]
[327559268,1716229646919,-500.0,0.00019178,2]
[327559269,1716229646941,-500.0,0.00019178,2]
[327559270,1716229646964,-500.0,0.00019178,2]
[327559271,1716229646986,-500.0,0.00019178,2]
[327559272,1716229647007,-500.0,0.00019178,2]
[327559273,1716229647030,-500.0,0.00019178,2]
[327559274,1716229647050,-500.0,0.00019178,2]
[327559275,1716229647074,-500.0,0.00019178,2]
[327559276,1716229647099,-500.0,0.00019178,2]
[327559277,1716229647120,-300.0,0.00019178,2]
[327559278,1716229647140,-500.0,0.00019178,2]
[327559279,1716229647160,-500.0,0.00019178,2]
[327559280,1716229647183,-500.0,0.00019178,2]
[327559281,1716229647204,-500.0,0.00019178,2]
[327559282,1716229647225,-500.0,0.00019178,2]
[327559283,1716229647246,-500.0,0.00019178,2]
[327559284,1716229647267,-500.0,0.00019178,2]
[327559285,1716229647287,-500.0,0.00019178,2]
[327559286,1716229647308,-500.0,0.00019178,2]
[327559287,1716229647328,-500.0,0.00019178,2]
[327559288,1716229647351,-500.0,0.00019178,2]
[327559289,1716229647373,-500.0,0.00019178,2]
[327559290,1716229647397,-500.0,0.00019178,2]
[327559291,1716229647419,-500.0,0.00019178,2]
[327559292,1716229647440,-500.0,0.00019178,2]
[327559293,1716229647461,-500.0,0.00019178,2]
[327559294,1716229647483,-500.0,0.00019178,2]
[327559295,1716229647505,-500.0,0.00019178,2]
[327559296,1716229647534,-500.0,0.00019178,2]
[327559297,1716229647557,-500.0,0.00019178,2]
[327559298,1716229647577,-250.0,0.00019178,2]
[327559299,1716229647604,-500.0,0.00019178,2]
[327559300,1716229647624,-500.0,0.00019178,2]
[327559301,1716229647645,-500.0,0.00019178,2]
[327559302,1716229647665,-500.0,0.00019178,2]
[327559303,1716229647687,-500.0,0.00019178,2]
[327559304,1716229647708,-500.0,0.00019178,2]
[327559305,1716229647809,-500.0,0.00019178,2]
[327559306,1716229647848,-500.0,0.00019178,2]
[327559307,1716229647868,-250.0,0.00019178,2]
[327559308,1716229647889,-500.0,0.00019178,2]
[327559309,1716229647910,-500.0,0.00019178,2]
[327559310,1716229647930,-500.0,0.00019178,2]
[327559311,1716229647951,-500.0,0.00019178,2]
[327559312,1716229647972,-500.0,0.00019178,2]
[327559313,1716229647992,-500.0,0.00019178,2]
[327559314,1716229648014,-500.0,0.00019178,2]
[327559315,1716229648035,-500.0,0.00019178,2]
[327559316,1716229648056,-397.09102387,0.00019178,2]
[327559323,1716229748679,-1969.93402606,0.00019078,2]
[327559324,1716229748701,-160.98129974,0.00019177,2]
[327559325,1716229748722,-102.90897613,0.00019178,2]
[327559326,1716229748745,-500.0,0.00019178,2]
[327559327,1716229748770,-500.0,0.00019178,2]
[327559328,1716229748792,-500.0,0.00019178,2]
[327559329,1716229748815,-500.0,0.00019178,2]
[327559330,1716229748836,-500.0,0.00019178,2]
[327559331,1716229748858,-500.0,0.00019178,2]
[327559332,1716229748884,-500.0,0.00019178,2]
[327559333,1716229748905,-500.0,0.00019178,2]
[327559334,1716229748926,-500.0,0.00019178,2]
[327559335,1716229748948,-500.0,0.00019178,2]
[327559336,1716229748969,-500.0,0.00019178,2]
[327559337,1716229748990,-500.0,0.00019178,2]
[327559338,1716229749011,-500.0,0.00019178,2]
[327559339,1716229749032,-500.0,0.00019178,2]
[327559340,1716229749058,-500.0,0.00019178,2]
[327559341,1716229749080,-500.0,0.00019178,2]
[327559342,1716229749102,-500.0,0.00019178,2]
[327559343,1716229749125,-502.30817697,0.00019178,2]
[327559344,1716229749147,-500.0,0.00019178,2]
[327559345,1716229749168,-500.0,0.00019178,2]
[327559346,1716229749191,-499.99999999,0.00019178,2]
[327559347,1716229749213,-546.38821387,0.00019178,2]
[327559348,1716229749235,-500.0,0.00019178,2]
[327559349,1716229749256,-500.0,0.00019178,2]
[327559350,1716229749278,-209.34974133,0.00019178,2]
[327559351,1716229749304,-191.46511093,0.00019178,2]
[327559352,1716229749326,-151.0,0.00019178,2]
[327559353,1716229749347,-702.758161,0.00019178,2]
[327559354,1716229749490,-702.758161,0.00019178,2]
[327559355,1716229749512,-151.0,0.00019178,2]
[327559356,1716229749535,-151.0,0.00019178,2]
[327559357,1716229749561,-151.0,0.00019178,2]
[327559358,1716229749583,-151.0,0.00019178,2]
[327559359,1716229749604,-210.976293,0.00019178,2]
[327559360,1716229749628,-151.0,0.00019178,2]
[327559361,1716229749649,-151.0,0.00019178,2]
[327559362,1716229749670,-334.826097,0.00019178,2]
[327559363,1716229749691,-308.815369,0.00019178,2]
[327559364,1716229749713,-308.815369,0.00019178,2]
[327559365,1716229749733,-151.0,0.00019178,2]
[327559366,1716229749754,-627.300356,0.00019178,2]
[327559367,1716229749775,-151.0,0.00019178,2]
[327559368,1716229749796,-627.300356,0.00019178,2]
[327559369,1716229749817,-151.0,0.00019178,2]
[327559370,1716229749839,-577.172122,0.00019178,2]
[327559371,1716229749861,-577.172122,0.00019178,2]
[327559372,1716229749881,-151.0,0.00019178,2]
[327559373,1716229749902,-151.0,0.00019178,2]
[327559374,1716229749922,-1315.836726,0.00019178,2]
[327559375,1716229749944,-1315.836726,0.00019178,2]
[327559376,1716229749965,-183.292603,0.00019178,2]
[327559377,1716229749986,-183.292603,0.00019178,2]
[327559378,1716229750008,-750.272793,0.00019178,2]
[327559379,1716229750030,-1784.700407,0.00019178,2]
[327559380,1716229750051,-750.272793,0.00019178,2]
[327559381,1716229750071,-1784.700407,0.00019178,2]
[327559382,1716229750090,-151.0,0.00019178,2]
[327559383,1716229750111,-151.0,0.00019178,2]
[327559384,1716229750131,-151.0,0.00019178,2]
[327559385,1716229750151,-151.0,0.00019178,2]
[327559386,1716229750172,-151.0,0.00019178,2]
[327559387,1716229750195,-1316.50199098,0.00019178,2]
[327559388,1716229750518,-343.48362202,0.00019178,2]
[327559389,1716229750539,-151.0,0.00019178,2]
[327559390,1716229750566,-1659.985613,0.00019178,2]
[327559391,1716229750587,-151.0,0.00019178,2]
[327559392,1716229750607,-151.0,0.00019178,2]
[327559393,1716229750629,-475.827332,0.00019178,2]
[327559394,1716229750650,-475.827332,0.00019178,2]
[327559395,1716229750670,-151.0,0.00019178,2]
[327559396,1716229750691,-1319.02059,0.00019178,2]
[327559397,1716229750713,-1319.02059,0.00019178,2]
[327559398,1716229750734,-160.911643,0.00019178,2]
[327559399,1716229750753,-165.852754,0.00019178,2]
[327559400,1716229750775,-500.0,0.00019997,2]
[327559401,1716229750794,-500.0,0.00019997,2]
[327559402,1716229750815,-500.0,0.00019997,2]
[327559403,1716229750835,-500.0,0.00019997,2]
[327559404,1716229750976,-500.0,0.00019997,2]
[327559405,1716229750998,-500.0,0.00019997,2]
[327559406,1716229751019,-500.0,0.00019997,2]
[327559407,1716229751040,-186.31578527,0.00019997,2]
[327559408,1716229751060,-502.44274805,0.00019997,2]
[327559409,1716229751081,-505.62495653,0.00019997,2]
[327559410,1716229751101,-500.0,0.00019997,2]
[327559411,1716229751121,-500.0,0.00019997,2]
[327559412,1716229751141,-500.0,0.00019997,2]
[327559413,1716229751163,-500.0,0.00019997,2]
[327559414,1716229751184,-500.0,0.00019997,2]
[327559415,1716229751206,-500.0,0.00019997,2]
[327559416,1716229751227,-643.21423537,0.00019997,2]
[327559417,1716229751249,-500.0,0.00019997,2]
[327559418,1716229751268,-395.47825139,0.00019997,2]
[327559419,1716229751288,-500.0,0.00019997,2]
[327559420,1716229751308,-500.0,0.00019997,2]
[327559421,1716229751330,-500.0,0.00019997,2]
[327559422,1716229751350,-500.0,0.00019997,2]
[327559423,1716229751370,-500.0,0.00019997,2]
[327559424,1716229751390,-500.0,0.00019997,2]
[327559425,1716229751412,-500.0,0.00019997,2]
[327559426,1716229751434,-500.0,0.00019997,2]
[327559427,1716229751455,-500.0,0.00019997,2]
[327559428,1716229751477,-500.0,0.00019997,2]
[327559429,1716229751497,-500.0,0.00019997,2]
[327559430,1716229751518,-500.0,0.00019997,2]
[327559431,1716229751538,-500.0,0.00019997,2]